fUST/lending_fUST_20260530
["ID","MTS","AMOUNT","RATE_DAILY","PERIOD"]
[423427411,1780108239000,-500.0,9.171e-05,2]
[423427405,1780108239000,-500.0,9.171e-05,2]
[423427407,1780108239000,-500.0,9.171e-05,2]
[423427401,1780108239000,-566.03689035,9.171e-05,2]
[423427403,1780108239000,-507.90080063,9.171e-05,2]
[423427399,1780108239000,-502.38276255,9.171e-05,2]
[423427397,1780108239000,-500.0,9.171e-05,2]
[423427394,1780108239000,-500.0,9.171e-05,2]
[423427390,1780108239000,-501.5707313,9.171e-05,2]
[423427388,1780108239000,-500.0,9.171e-05,2]
[423427384,1780108239000,-500.0,9.17e-05,2]
[423427409,1780108239000,-500.0,9.171e-05,2]
[423427382,1780108239000,-500.0,9.17e-05,2]
[423427386,1780108239000,-500.0,9.171e-05,2]
[423427374,1780108239000,-500.0,9.17e-05,2]
[423427376,1780108239000,-500.0,9.17e-05,2]
[423427380,1780108239000,-302.89495639,9.17e-05,2]
[423427378,1780108239000,-500.0,9.17e-05,2]
[423427363,1780108239000,-500.0,9.17e-05,2]
[423427372,1780108239000,-500.0,9.17e-05,2]
[423427367,1780108239000,-500.0,9.17e-05,2]
[423427360,1780108239000,-500.0,9.17e-05,2]
[423427369,1780108239000,-500.0,9.17e-05,2]
[423427370,1780108239000,-500.0,9.17e-05,2]
[423427365,1780108239000,-500.0,9.17e-05,2]
[423427504,1780108240000,-500.0,9.172e-05,2]
[423427502,1780108240000,-500.0,9.172e-05,2]
[423427506,1780108240000,-500.0,9.172e-05,2]
[423427495,1780108240000,-500.0,9.172e-05,2]
[423427485,1780108240000,-500.0,9.172e-05,2]
[423427482,1780108240000,-500.0,9.172e-05,2]
[423427468,1780108240000,-500.0,9.172e-05,2]
[423427480,1780108240000,-500.0,9.172e-05,2]
[423427470,1780108240000,-500.0,9.172e-05,2]
[423427478,1780108240000,-500.0,9.172e-05,2]
[423427489,1780108240000,-500.0,9.172e-05,2]
[423427483,1780108240000,-410.99716063,9.172e-05,2]
[423427510,1780108240000,-500.0,9.172e-05,2]
[423427520,1780108240000,-462.00380418,9.172e-05,2]
[423427508,1780108240000,-500.0,9.172e-05,2]
[423427493,1780108240000,-500.0,9.172e-05,2]
[423427497,1780108240000,-500.0,9.172e-05,2]
[423427491,1780108240000,-341.45072135,9.172e-05,2]
[423427501,1780108240000,-491.94894127,9.172e-05,2]
[423427512,1780108240000,-500.64168044,9.172e-05,2]
[423427522,1780108240000,-500.0,9.172e-05,2]
[423427514,1780108240000,-502.54932223,9.172e-05,2]
[423427524,1780108240000,-500.0,9.172e-05,2]
[423427526,1780108240000,-500.0,9.172e-05,2]
[423427528,1780108240000,-500.0,9.172e-05,2]
[423427472,1780108240000,-500.0,9.172e-05,2]
[423427530,1780108240000,-500.0,9.172e-05,2]
[423427499,1780108240000,-500.0,9.172e-05,2]
[423427476,1780108240000,-500.0,9.172e-05,2]
[423427451,1780108240000,-500.0,9.172e-05,2]
[423427474,1780108240000,-500.0,9.172e-05,2]
[423427413,1780108240000,-500.0,9.171e-05,2]
[423427415,1780108240000,-500.0,9.171e-05,2]
[423427417,1780108240000,-500.0,9.171e-05,2]
[423427419,1780108240000,-500.0,9.171e-05,2]
[423427421,1780108240000,-500.0,9.171e-05,2]
[423427431,1780108240000,-501.09132956,9.171e-05,2]
[423427433,1780108240000,-503.1903747,9.171e-05,2]
[423427426,1780108240000,-395.33346693,9.171e-05,2]
[423427424,1780108240000,-500.0,9.171e-05,2]
[423427427,1780108240000,-500.0,9.171e-05,2]
[423427435,1780108240000,-500.0,9.171e-05,2]
[423427429,1780108240000,-508.7118881,9.171e-05,2]
[423427447,1780108240000,-500.0,9.172e-05,2]
[423427466,1780108240000,-500.0,9.172e-05,2]
[423427449,1780108240000,-500.0,9.172e-05,2]
[423427436,1780108240000,-500.0,9.171e-05,2]
[423427438,1780108240000,-471.20933569,9.171e-05,2]
[423427532,1780108240000,-500.0,9.172e-05,2]
[423427455,1780108240000,-500.0,9.172e-05,2]
[423427460,1780108240000,-500.0,9.172e-05,2]
[423427446,1780108240000,-500.0,9.171e-05,2]
[423427457,1780108240000,-506.88468472,9.172e-05,2]
[423427442,1780108240000,-500.0,9.171e-05,2]
[423427440,1780108240000,-500.92563033,9.171e-05,2]
[423427444,1780108240000,-500.0,9.171e-05,2]
[423427459,1780108240000,-500.0,9.172e-05,2]
[423427463,1780108240000,-365.70104013,9.172e-05,2]
[423427465,1780108240000,-500.0,9.172e-05,2]
[423427453,1780108240000,-500.0,9.172e-05,2]
[423427545,1780108240000,-500.0,9.172e-05,2]
[423427487,1780108240000,-500.0,9.172e-05,2]
[423427549,1780108240000,-500.0,9.172e-05,2]
[423427605,1780108240000,-500.0,9.172e-05,2]
[423427607,1780108240000,-500.0,9.172e-05,2]
[423427608,1780108240000,-500.0,9.172e-05,2]
[423427611,1780108240000,-500.39444666,9.172e-05,2]
[423427623,1780108240000,-500.0,9.172e-05,2]
[423427625,1780108240000,-502.91987628,9.172e-05,2]
[423427626,1780108240000,-501.03748731,9.172e-05,2]
[423427628,1780108240000,-500.0,9.172e-05,2]
[423427630,1780108240000,-500.0,9.172e-05,2]
[423427619,1780108240000,-500.0,9.172e-05,2]
[423427636,1780108240000,-500.0,9.172e-05,2]
[423427620,1780108240000,-503.30937912,9.172e-05,2]
[423427632,1780108240000,-500.63092257,9.172e-05,2]
[423427597,1780108240000,-500.0,9.172e-05,2]
[423427615,1780108240000,-500.0,9.172e-05,2]
[423427634,1780108240000,-500.0,9.172e-05,2]
[423427617,1780108240000,-500.0,9.172e-05,2]
[423427638,1780108240000,-1469.6721,9.172e-05,2]
[423427649,1780108240000,-500.0,9.172e-05,2]
[423427640,1780108240000,-380.14839222,9.172e-05,2]
[423427651,1780108240000,-500.72342025,9.172e-05,2]
[423427653,1780108240000,-501.62397478,9.172e-05,2]
[423427642,1780108240000,-161.05467264,9.172e-05,2]
[423427655,1780108240000,-500.82159351,9.172e-05,2]
[423427547,1780108240000,-500.0,9.172e-05,2]
[423427646,1780108240000,-502.0983132,9.172e-05,2]
[423427644,1780108240000,-500.0,9.172e-05,2]
[423427659,1780108240000,-186.55998132,9.172e-05,2]
[423427613,1780108240000,-285.52351661,9.172e-05,2]
[423427603,1780108240000,-500.88193535,9.172e-05,2]
[423427657,1780108240000,-500.0,9.172e-05,2]
[423427601,1780108240000,-500.0,9.172e-05,2]
[423427599,1780108240000,-500.0,9.172e-05,2]
[423427551,1780108240000,-500.0,9.172e-05,2]
[423427553,1780108240000,-500.0,9.172e-05,2]
[423427534,1780108240000,-500.0,9.172e-05,2]
[423427539,1780108240000,-500.0,9.172e-05,2]
[423427540,1780108240000,-500.0,9.172e-05,2]
[423427555,1780108240000,-500.0,9.172e-05,2]
[423427543,1780108240000,-500.0,9.172e-05,2]
[423427557,1780108240000,-500.0,9.172e-05,2]
[423427559,1780108240000,-500.0,9.172e-05,2]
[423427562,1780108240000,-500.0,9.172e-05,2]
[423427571,1780108240000,-502.48238631,9.172e-05,2]
[423427561,1780108240000,-500.0,9.172e-05,2]
[423427565,1780108240000,-500.0,9.172e-05,2]
[423427537,1780108240000,-500.54040491,9.172e-05,2]
[423427567,1780108240000,-500.60922123,9.172e-05,2]
[423427572,1780108240000,-500.71871529,9.172e-05,2]
[423427590,1780108240000,-500.0,9.172e-05,2]
[423427588,1780108240000,-501.13599788,9.172e-05,2]
[423427586,1780108240000,-500.0,9.172e-05,2]
[423427584,1780108240000,-500.0,9.172e-05,2]
[423427595,1780108240000,-500.0,9.172e-05,2]
[423427578,1780108240000,-500.0,9.172e-05,2]
[423427574,1780108240000,-501.05958865,9.172e-05,2]
[423427582,1780108240000,-500.0,9.172e-05,2]
[423427592,1780108240000,-500.0,9.172e-05,2]
[423427580,1780108240000,-500.0,9.172e-05,2]
[423427576,1780108240000,-500.0,9.172e-05,2]
[423427568,1780108240000,-500.0,9.172e-05,2]
[423427761,1780108241000,-500.38397917,9.173e-05,2]
[423427739,1780108241000,-500.0,9.173e-05,2]
[423427719,1780108241000,-500.0,9.173e-05,2]
[423427720,1780108241000,-500.0,9.173e-05,2]
[423427726,1780108241000,-500.0,9.173e-05,2]
[423427729,1780108241000,-500.0,9.173e-05,2]
[423427724,1780108241000,-500.0,9.173e-05,2]
[423427722,1780108241000,-500.25615859,9.173e-05,2]
[423427734,1780108241000,-500.0,9.173e-05,2]
[423427736,1780108241000,-500.57966111,9.173e-05,2]
[423427732,1780108241000,-500.0,9.173e-05,2]
[423427751,1780108241000,-500.0,9.173e-05,2]
[423427746,1780108241000,-500.41135218,9.173e-05,2]
[423427742,1780108241000,-500.0,9.173e-05,2]
[423427753,1780108241000,-500.81471204,9.173e-05,2]
[423427755,1780108241000,-500.6383455,9.173e-05,2]
[423427744,1780108241000,-500.0,9.173e-05,2]
[423427770,1780108241000,-500.57593187,9.173e-05,2]
[423427774,1780108241000,-453.02869858,9.173e-05,2]
[423427772,1780108241000,-500.32392041,9.173e-05,2]
[423427776,1780108241000,-500.40299368,9.173e-05,2]
[423427758,1780108241000,-508.821359,9.173e-05,2]
[423427713,1780108241000,-500.0,9.173e-05,2]
[423427749,1780108241000,-500.0,9.173e-05,2]
[423427715,1780108241000,-500.0,9.173e-05,2]
[423427668,1780108241000,-500.0,9.173e-05,2]
[423427705,1780108241000,-500.0,9.173e-05,2]
[423427660,1780108241000,-500.0,9.173e-05,2]
[423427662,1780108241000,-500.0,9.173e-05,2]
[423427674,1780108241000,-500.0,9.173e-05,2]
[423427676,1780108241000,-500.0,9.173e-05,2]
[423427678,1780108241000,-500.0,9.173e-05,2]
[423427682,1780108241000,-500.0,9.173e-05,2]
[423427684,1780108241000,-500.0,9.173e-05,2]
[423427664,1780108241000,-500.0,9.173e-05,2]
[423427666,1780108241000,-500.45432691,9.173e-05,2]
[423427672,1780108241000,-500.0,9.173e-05,2]
[423427670,1780108241000,-500.0,9.173e-05,2]
[423427707,1780108241000,-500.0,9.173e-05,2]
[423427680,1780108241000,-500.0,9.173e-05,2]
[423427688,1780108241000,-500.0,9.173e-05,2]
[423427690,1780108241000,-500.0,9.173e-05,2]
[423427693,1780108241000,-500.0,9.173e-05,2]
[423427695,1780108241000,-500.0,9.173e-05,2]
[423427699,1780108241000,-500.0,9.173e-05,2]
[423427692,1780108241000,-500.0,9.173e-05,2]
[423427701,1780108241000,-500.0,9.173e-05,2]
[423427697,1780108241000,-500.0,9.173e-05,2]
[423427703,1780108241000,-500.31037683,9.173e-05,2]
[423427711,1780108241000,-500.0,9.173e-05,2]
[423427709,1780108241000,-372.75446004,9.173e-05,2]
[423427686,1780108241000,-500.0,9.173e-05,2]
[423427779,1780108241000,-501.50865845,9.173e-05,2]
[423427717,1780108241000,-500.0,9.173e-05,2]
[423427763,1780108241000,-501.76000247,9.173e-05,2]
[423427842,1780108241000,-500.0,9.173e-05,2]
[423427848,1780108241000,-500.0,9.173e-05,2]
[423427856,1780108241000,-500.0,9.173e-05,2]
[423427846,1780108241000,-500.0,9.173e-05,2]
[423427850,1780108241000,-500.0,9.173e-05,2]
[423427852,1780108241000,-459.62833104,9.173e-05,2]
[423427854,1780108241000,-500.0,9.173e-05,2]
[423427858,1780108241000,-500.0,9.173e-05,2]
[423427868,1780108241000,-500.0,9.173e-05,2]
[423427860,1780108241000,-500.0,9.173e-05,2]
[423427862,1780108241000,-500.0,9.173e-05,2]
[423427838,1780108241000,-500.21786091,9.173e-05,2]
[423427864,1780108241000,-500.0,9.173e-05,2]
[423427872,1780108241000,-500.0,9.173e-05,2]
[423427884,1780108241000,-500.0,9.173e-05,2]
[423427882,1780108241000,-500.0,9.173e-05,2]
[423427886,1780108241000,-500.19439181,9.173e-05,2]
[423427888,1780108241000,-500.0,9.173e-05,2]
[423427874,1780108241000,-500.17126464,9.173e-05,2]
[423427889,1780108241000,-500.0,9.173e-05,2]
[423427876,1780108241000,-500.0,9.173e-05,2]
[423427878,1780108241000,-500.18089431,9.173e-05,2]
[423427880,1780108241000,-500.0,9.173e-05,2]
[423427767,1780108241000,-500.94011054,9.173e-05,2]
[423427870,1780108241000,-507.55009588,9.173e-05,2]
[423427844,1780108241000,-500.0,9.173e-05,2]
[423427866,1780108241000,-500.0,9.173e-05,2]
[423427837,1780108241000,-500.0,9.173e-05,2]
[423427840,1780108241000,-500.0,9.173e-05,2]
[423427765,1780108241000,-500.0,9.173e-05,2]
[423427792,1780108241000,-500.71448927,9.173e-05,2]
[423427797,1780108241000,-500.45266874,9.173e-05,2]
[423427794,1780108241000,-500.68043456,9.173e-05,2]
[423427781,1780108241000,-501.86530358,9.173e-05,2]
[423427784,1780108241000,-461.56969621,9.173e-05,2]
[423427787,1780108241000,-495.880591,9.173e-05,2]
[423427800,1780108241000,-500.32464742,9.173e-05,2]
[423427803,1780108241000,-500.76761853,9.173e-05,2]
[423427811,1780108241000,-500.0,9.173e-05,2]
[423427805,1780108241000,-501.49104781,9.173e-05,2]
[423427789,1780108241000,-501.16806955,9.173e-05,2]
[423427813,1780108241000,-500.33496402,9.173e-05,2]
[423427834,1780108241000,-500.0,9.173e-05,2]
[423427829,1780108241000,-1000.0,9.173e-05,2]
[423427831,1780108241000,-500.0,9.173e-05,2]
[423427825,1780108241000,-500.0,9.173e-05,2]
[423427833,1780108241000,-500.0,9.173e-05,2]
[423427827,1780108241000,-404.26715149,9.173e-05,2]
[423427818,1780108241000,-500.0,9.173e-05,2]
[423427821,1780108241000,-500.0,9.173e-05,2]
[423427816,1780108241000,-500.0,9.173e-05,2]
[423427808,1780108241000,-500.83576498,9.173e-05,2]
[423427823,1780108241000,-501.45498497,9.173e-05,2]
[423427977,1780108242000,-500.0,9.173e-05,2]
[423427981,1780108242000,-500.0,9.173e-05,2]
[423427985,1780108242000,-500.0,9.173e-05,2]
[423427983,1780108242000,-500.22447043,9.173e-05,2]
[423427979,1780108242000,-500.0,9.173e-05,2]
[423427958,1780108242000,-500.0,9.173e-05,2]
[423427973,1780108242000,-500.0,9.173e-05,2]
[423427956,1780108242000,-500.0,9.173e-05,2]
[423427952,1780108242000,-500.65071011,9.173e-05,2]
[423427975,1780108242000,-500.0,9.173e-05,2]
[423427971,1780108242000,-500.0,9.173e-05,2]
[423427987,1780108242000,-500.0,9.173e-05,2]
[423427954,1780108242000,-500.0,9.173e-05,2]
[423427991,1780108242000,-500.0,9.173e-05,2]
[423428022,1780108242000,-500.0,9.173e-05,2]
[423427993,1780108242000,-500.0,9.173e-05,2]
[423427989,1780108242000,-500.0,9.173e-05,2]
[423427996,1780108242000,-500.0,9.173e-05,2]
[423428000,1780108242000,-500.0,9.173e-05,2]
[423427998,1780108242000,-500.0,9.173e-05,2]
[423428014,1780108242000,-500.0,9.173e-05,2]
[423428019,1780108242000,-500.0,9.173e-05,2]
[423428002,1780108242000,-500.0,9.173e-05,2]
[423428017,1780108242000,-500.0,9.173e-05,2]
[423428011,1780108242000,-500.0,9.173e-05,2]
[423428005,1780108242000,-580.10354003,9.173e-05,2]
[423428024,1780108242000,-500.0,9.173e-05,2]
[423427969,1780108242000,-500.0,9.173e-05,2]
[423427994,1780108242000,-500.0,9.173e-05,2]
[423427967,1780108242000,-500.0,9.173e-05,2]
[423427903,1780108242000,-500.0,9.173e-05,2]
[423427965,1780108242000,-500.0,9.173e-05,2]
[423427892,1780108242000,-500.0,9.173e-05,2]
[423427894,1780108242000,-500.0,9.173e-05,2]
[423427896,1780108242000,-542.24211847,9.173e-05,2]
[423427901,1780108242000,-500.0,9.173e-05,2]
[423428020,1780108242000,-500.0,9.173e-05,2]
[423427898,1780108242000,-500.14678778,9.173e-05,2]
[423427906,1780108242000,-500.0,9.173e-05,2]
[423427909,1780108242000,-500.0,9.173e-05,2]
[423427911,1780108242000,-500.0,9.173e-05,2]
[423427899,1780108242000,-500.0,9.173e-05,2]
[423427913,1780108242000,-500.0,9.173e-05,2]
[423427915,1780108242000,-500.0,9.173e-05,2]
[423427917,1780108242000,-500.0,9.173e-05,2]
[423427919,1780108242000,-500.0,9.173e-05,2]
[423427921,1780108242000,-500.0,9.173e-05,2]
[423427923,1780108242000,-500.0,9.173e-05,2]
[423427925,1780108242000,-500.0,9.173e-05,2]
[423427933,1780108242000,-500.0,9.173e-05,2]
[423427929,1780108242000,-500.0,9.173e-05,2]
[423427941,1780108242000,-500.0,9.173e-05,2]
[423427931,1780108242000,-500.0,9.173e-05,2]
[423427927,1780108242000,-500.0,9.173e-05,2]
[423427938,1780108242000,-500.0,9.173e-05,2]
[423427935,1780108242000,-500.0,9.173e-05,2]
[423427946,1780108242000,-500.0,9.173e-05,2]
[423427943,1780108242000,-500.0,9.173e-05,2]
[423427949,1780108242000,-500.0,9.173e-05,2]
[423427959,1780108242000,-500.0,9.173e-05,2]
[423427961,1780108242000,-446.27219344,9.173e-05,2]
[423427963,1780108242000,-500.0,9.173e-05,2]
[423428028,1780108242000,-500.0,9.173e-05,2]
[423428008,1780108242000,-500.0,9.173e-05,2]
[423428026,1780108242000,-500.0,9.173e-05,2]
[423428104,1780108242000,-500.0,9.174e-05,2]
[423428090,1780108242000,-511.74402903,9.174e-05,2]
[423428086,1780108242000,-501.48973986,9.174e-05,2]
[423428094,1780108242000,-501.45909738,9.174e-05,2]
[423428106,1780108242000,-500.0,9.174e-05,2]
[423428112,1780108242000,-500.0,9.174e-05,2]
[423428108,1780108242000,-500.63429908,9.174e-05,2]
[423428110,1780108242000,-501.97240749,9.174e-05,2]
[423428125,1780108242000,-300.0,9.356e-05,2]
[423428127,1780108242000,-300.0,9.356e-05,2]
[423428118,1780108242000,-500.0,9.341e-05,2]
[423428114,1780108242000,-501.53535664,9.341e-05,2]
[423428132,1780108242000,-500.0,9.444e-05,2]
[423428129,1780108242000,-500.0,9.444e-05,2]
[423428092,1780108242000,-503.69522121,9.174e-05,2]
[423428121,1780108242000,-500.0,9.341e-05,2]
[423428131,1780108242000,-571.48,9.444e-05,2]
[423428116,1780108242000,-500.0,9.341e-05,2]
[423428134,1780108242000,-500.0,9.444e-05,2]
[423428123,1780108242000,-500.0,9.341e-05,2]
[423428136,1780108242000,-587.7912337,9.444e-05,2]
[423428138,1780108242000,-500.0,9.444e-05,2]
[423428153,1780108242000,-500.0,9.444e-05,2]
[423428154,1780108242000,-500.0,9.444e-05,2]
[423428142,1780108242000,-500.0,9.444e-05,2]
[423428140,1780108242000,-500.0,9.444e-05,2]
[423428150,1780108242000,-500.0,9.444e-05,2]
[423428148,1780108242000,-500.0,9.444e-05,2]
[423428030,1780108242000,-500.0,9.173e-05,2]
[423428144,1780108242000,-500.0,9.444e-05,2]
[423428120,1780108242000,-500.0,9.341e-05,2]
[423428096,1780108242000,-500.0,9.174e-05,2]
[423428146,1780108242000,-500.0,9.444e-05,2]
[423428102,1780108242000,-500.0,9.174e-05,2]
[423428088,1780108242000,-282.28816358,9.174e-05,2]
[423428043,1780108242000,-500.0,9.173e-05,2]
[423428045,1780108242000,-500.0,9.173e-05,2]
[423428035,1780108242000,-504.41439066,9.173e-05,2]
[423428039,1780108242000,-500.0,9.173e-05,2]
[423428053,1780108242000,-500.0,9.173e-05,2]
[423428051,1780108242000,-500.0,9.173e-05,2]
[423428041,1780108242000,-500.0,9.173e-05,2]
[423428037,1780108242000,-500.0,9.173e-05,2]
[423428047,1780108242000,-500.0,9.173e-05,2]
[423428049,1780108242000,-500.0,9.173e-05,2]
[423428059,1780108242000,-500.0,9.173e-05,2]
[423428055,1780108242000,-500.0,9.173e-05,2]
[423428057,1780108242000,-500.0,9.173e-05,2]
[423428033,1780108242000,-500.0,9.173e-05,2]
[423428069,1780108242000,-546.69249892,9.173e-05,2]
[423428063,1780108242000,-500.38388612,9.173e-05,2]
[423428100,1780108242000,-500.76310408,9.174e-05,2]
[423428084,1780108242000,-500.7869003,9.174e-05,2]
[423428082,1780108242000,-500.400225,9.174e-05,2]
[423428077,1780108242000,-500.0,9.174e-05,2]
[423428075,1780108242000,-500.0,9.174e-05,2]
[423428098,1780108242000,-502.54105535,9.174e-05,2]
[423428073,1780108242000,-500.0,9.174e-05,2]
[423428079,1780108242000,-500.50969831,9.174e-05,2]
[423428071,1780108242000,-500.28105039,9.173e-05,2]
[423428061,1780108242000,-500.0,9.173e-05,2]
[423428067,1780108242000,-500.0,9.173e-05,2]
[423428065,1780108242000,-500.0,9.173e-05,2]
[423428081,1780108242000,-500.0,9.174e-05,2]
[423428248,1780108243000,-500.77980148,9.446e-05,2]
[423428240,1780108243000,-500.0,9.446e-05,2]
[423428242,1780108243000,-503.18137103,9.446e-05,2]
[423428238,1780108243000,-500.0,9.446e-05,2]
[423428234,1780108243000,-500.0,9.446e-05,2]
[423428236,1780108243000,-500.0,9.446e-05,2]
[423428230,1780108243000,-500.0,9.446e-05,2]
[423428228,1780108243000,-500.0,9.446e-05,2]
[423428226,1780108243000,-500.0,9.446e-05,2]
[423428224,1780108243000,-500.0,9.446e-05,2]
[423428222,1780108243000,-500.0,9.446e-05,2]
[423428232,1780108243000,-500.0,9.446e-05,2]
[423428246,1780108243000,-505.37597185,9.446e-05,2]
[423428254,1780108243000,-500.0,9.446e-05,2]
[423428250,1780108243000,-500.0,9.446e-05,2]
[423428252,1780108243000,-500.0,9.446e-05,2]
[423428264,1780108243000,-500.0,9.446e-05,2]
[423428262,1780108243000,-500.0,9.446e-05,2]
[423428266,1780108243000,-500.84593698,9.446e-05,2]
[423428268,1780108243000,-500.0,9.446e-05,2]
[423428258,1780108243000,-500.0,9.446e-05,2]
[423428256,1780108243000,-500.0,9.446e-05,2]
[423428270,1780108243000,-500.0,9.446e-05,2]
[423428259,1780108243000,-388.6324293,9.446e-05,2]
[423428276,1780108243000,-501.06007542,9.446e-05,2]
[423428274,1780108243000,-500.0,9.446e-05,2]
[423428219,1780108243000,-500.0,9.446e-05,2]
[423428272,1780108243000,-500.0,9.446e-05,2]
[423428244,1780108243000,-500.0,9.446e-05,2]
[423428221,1780108243000,-500.0,9.446e-05,2]
[423428184,1780108243000,-500.0,9.445e-05,2]
[423428203,1780108243000,-500.0,9.445e-05,2]
[423428278,1780108243000,-501.15225747,9.446e-05,2]
[423428156,1780108243000,-161.71235534,9.444e-05,2]
[423428160,1780108243000,-500.0,9.444e-05,2]
[423428158,1780108243000,-500.0,9.444e-05,2]
[423428162,1780108243000,-500.0,9.444e-05,2]
[423428166,1780108243000,-504.92,9.444e-05,2]
[423428164,1780108243000,-500.0,9.444e-05,2]
[423428168,1780108243000,-500.0,9.444e-05,2]
[423428170,1780108243000,-500.0,9.444e-05,2]
[423428172,1780108243000,-500.0,9.445e-05,2]
[423428174,1780108243000,-500.0,9.445e-05,2]
[423428178,1780108243000,-500.0,9.445e-05,2]
[423428176,1780108243000,-419.84811248,9.445e-05,2]
[423428186,1780108243000,-500.0,9.445e-05,2]
[423428180,1780108243000,-500.0,9.445e-05,2]
[423428190,1780108243000,-500.0,9.445e-05,2]
[423428188,1780108243000,-500.0,9.445e-05,2]
[423428182,1780108243000,-442.94554411,9.445e-05,2]
[423428193,1780108243000,-500.0,9.445e-05,2]
[423428191,1780108243000,-500.0,9.445e-05,2]
[423428209,1780108243000,-500.0,9.446e-05,2]
[423428207,1780108243000,-560.17699728,9.446e-05,2]
[423428211,1780108243000,-500.0,9.446e-05,2]
[423428195,1780108243000,-500.0,9.445e-05,2]
[423428201,1780108243000,-500.0,9.445e-05,2]
[423428205,1780108243000,-500.00186079,9.446e-05,2]
[423428197,1780108243000,-500.0,9.445e-05,2]
[423428215,1780108243000,-500.0,9.446e-05,2]
[423428199,1780108243000,-367.02303112,9.445e-05,2]
[423428213,1780108243000,-500.0,9.446e-05,2]
[423428280,1780108243000,-500.0,9.446e-05,2]
[423428374,1780108243000,-500.96169829,9.447e-05,2]
[423428290,1780108243000,-500.0,9.447e-05,2]
[423428334,1780108243000,-500.0,9.447e-05,2]
[423428355,1780108243000,-507.23440103,9.447e-05,2]
[423428353,1780108243000,-501.65794393,9.447e-05,2]
[423428357,1780108243000,-501.30590562,9.447e-05,2]
[423428351,1780108243000,-501.28460287,9.447e-05,2]
[423428361,1780108243000,-231.16542688,9.447e-05,2]
[423428365,1780108243000,-500.94673786,9.447e-05,2]
[423428367,1780108243000,-606.20786667,9.447e-05,2]
[423428363,1780108243000,-483.54546444,9.447e-05,2]
[423428369,1780108243000,-500.0,9.447e-05,2]
[423428370,1780108243000,-633.7745564,9.447e-05,2]
[423428372,1780108243000,-504.25767873,9.447e-05,2]
[423428371,1780108243000,-505.59818789,9.447e-05,2]
[423428376,1780108243000,-502.66555845,9.447e-05,2]
[423428380,1780108243000,-503.85766987,9.447e-05,2]
[423428373,1780108243000,-451.58254776,9.447e-05,2]
[423428375,1780108243000,-500.99573981,9.447e-05,2]
[423428378,1780108243000,-500.95961664,9.447e-05,2]
[423428384,1780108243000,-500.0,9.447e-05,2]
[423428379,1780108243000,-504.42160044,9.447e-05,2]
[423428388,1780108243000,-247.20818466,9.447e-05,2]
[423428382,1780108243000,-646.94028401,9.447e-05,2]
[423428377,1780108243000,-568.36125951,9.447e-05,2]
[423428383,1780108243000,-503.07037001,9.447e-05,2]
[423428386,1780108243000,-502.89655591,9.447e-05,2]
[423428387,1780108243000,-500.39947423,9.447e-05,2]
[423428385,1780108243000,-501.59555254,9.447e-05,2]
[423428381,1780108243000,-503.53077451,9.447e-05,2]
[423428282,1780108243000,-1469.6721,9.446e-05,2]
[423428345,1780108243000,-381.0556688,9.447e-05,2]
[423428347,1780108243000,-504.26510398,9.447e-05,2]
[423428359,1780108243000,-500.9473518,9.447e-05,2]
[423428343,1780108243000,-500.0,9.447e-05,2]
[423428284,1780108243000,-500.52460975,9.446e-05,2]
[423428286,1780108243000,-500.0,9.446e-05,2]
[423428288,1780108243000,-500.0,9.447e-05,2]
[423428296,1780108243000,-500.0,9.447e-05,2]
[423428292,1780108243000,-500.0,9.447e-05,2]
[423428294,1780108243000,-500.87432562,9.447e-05,2]
[423428300,1780108243000,-437.09,9.447e-05,2]
[423428349,1780108243000,-500.0,9.447e-05,2]
[423428298,1780108243000,-500.0,9.447e-05,2]
[423428303,1780108243000,-500.0,9.447e-05,2]
[423428317,1780108243000,-501.45739516,9.447e-05,2]
[423428319,1780108243000,-500.80583799,9.447e-05,2]
[423428320,1780108243000,-500.0,9.447e-05,2]
[423428307,1780108243000,-503.03367379,9.447e-05,2]
[423428326,1780108243000,-500.70540449,9.447e-05,2]
[423428302,1780108243000,-500.0,9.447e-05,2]